bitfinex/quotes_SOLUSD_20250130
["timestamp","ask_amount","ask_price","bid_price","bid_amount"]
[1738242630036,0.03038458,239.51,239.48,8.04513074]
[1738242630201,0.03038458,239.51,239.48,12.22063074]
[1738242633725,0.03038458,239.51,239.48,12.25063074]
[1738242634126,0.03038458,239.51,239.5,8.04513074]
[1738242634312,0.03038458,239.51,239.5,21.45697927]
[1738242636026,0.03038458,239.51,239.5,25.63227927]
[1738242637918,0.03038458,239.51,239.48,8.07513074]
[1738242638110,0.03038458,239.51,239.48,12.25063074]
[1738242638306,0.03038458,239.51,239.48,4.2055]
[1738242638706,0.03038458,239.51,239.48,12.25063074]
[1738242639031,0.03038458,239.51,239.49,8.04513074]
[1738242639935,0.03038458,239.51,239.5,8.04513074]
[1738242640311,0.03038458,239.51,239.5,12.22043074]
[1738242643423,0.03038458,239.51,239.49,8.04513074]
[1738242643722,0.03038458,239.51,239.5,8.04513074]
[1738242644917,0.03038458,239.51,239.49,8.04513074]
[1738242646128,0.03038458,239.51,239.5,8.04513074]
[1738242647530,0.03038458,239.51,239.5,25.63227927]
[1738242648235,0.03038458,239.51,239.5,4.1753]
[1738242648537,0.03038458,239.51,239.48,12.25063074]
[1738242649236,0.03038458,239.51,239.48,0.03]
[1738242652831,0.03038458,239.51,239.49,8.04513074]
[1738242654521,0.03038458,239.51,239.49,12.22053074]
[1738242657854,0.03038458,239.51,239.49,12.25053074]
[1738242658228,0.03038458,239.51,239.5,17.58714853]
[1738242658534,0.03038458,239.51,239.5,17.83812853]
[1738242658740,0.03038458,239.51,239.5,25.88325927]
[1738242658941,8.458e-05,239.51,239.5,162.30364927]
[1738242659271,8.458e-05,239.53,239.52,34.66282853]
[1738242659423,8.458e-05,239.53,239.52,75.51446543]
[1738242660243,8.458e-05,239.53,239.52,78.68946543]
[1738242662954,8.458e-05,239.53,239.52,80.94044543]
[1738242663249,0.063,239.57,239.56,33.41184853]
[1738242663553,0.063,239.57,239.56,258.4828476]
[1738242663750,0.063,239.57,239.56,257.85697927]
[1738242664433,0.063,239.57,239.56,21.45697927]
[1738242664634,0.063,239.57,239.54,4.1746]
[1738242664840,0.063,239.57,239.52,138.8748]
[1738242665859,0.063,239.57,239.52,146.91993074]
[1738242666041,0.063,239.57,239.53,8.04513074]
[1738242666350,0.063,239.57,239.54,8.04513074]
[1738242667848,0.063,239.57,239.55,8.04513074]
[1738242669564,0.063,239.57,239.56,4.1743]
[1738242670151,0.063,239.57,239.56,12.21943074]
[1738242670860,0.063,239.57,239.53,4.1748]
[1738242671062,0.063,239.57,239.52,0.03]
[1738242671440,8.04513074,239.56,239.52,0.03]
[1738242671646,8.04513074,239.54,239.52,0.03]
[1738242671843,12.28223074,239.57,239.52,0.03]
[1738242672145,0.063,239.57,239.52,0.03]
[1738242673245,0.063,239.57,239.53,12.55837978]
[1738242674070,0.063,239.57,239.54,4.1746]
[1738242674363,0.063,239.57,239.54,16.73297978]
[1738242676259,0.063,239.57,239.56,30.14452831]
[1738242679362,0.063,239.57,239.54,16.73287978]
[1738242679566,0.063,239.57,239.52,16.76317978]
[1738242679771,0.063,239.57,239.52,4.2048]
[1738242681039,0.063,239.57,239.52,0.03]
[1738242682266,0.063,239.57,239.52,4.205]
[1738242685095,0.063,239.57,239.52,12.58837978]
[1738242685469,4.2372,239.57,239.52,0.03]
[1738242685679,12.55837978,239.54,239.52,0.03]
[1738242688097,16.73287978,239.55,239.52,0.03]
[1738242688897,12.55837978,239.55,239.52,0.03]
[1738242689301,12.55837978,239.56,239.52,0.03]
[1738242689695,0.063,239.57,239.52,0.03]
[1738242690000,0.063,239.57,239.52,12.58837978]
[1738242691110,0.063,239.57,239.52,0.03]
[1738242699410,0.063,239.57,239.53,8.03731887]
[1738242699720,0.063,239.57,239.55,8.03731887]
[1738242701015,0.063,239.57,239.56,21.4491674]
[1738242703215,0.063,239.57,239.56,25.6234674]
[1738242703608,0.063,239.57,239.56,25.8744474]
[1738242705017,0.063,239.57,239.56,107.5744474]
[1738242708118,0.03,239.67,239.59,13.41184853]
[1738242708434,0.03,239.67,239.63,8.03731887]
[1738242708807,0.03,239.67,239.63,13.41184853]
[1738242709324,0.03,239.67,239.62,13.41184853]
[1738242709500,0.03,239.67,239.62,25.6223674]
[1738242711322,0.03,239.67,239.63,8.03731887]
[1738242711524,0.03,239.67,239.64,4.1729]
[1738242711921,0.03,239.67,239.65,13.41184853]
[1738242713146,0.03,239.67,239.65,17.58444853]
[1738242714621,0.03,239.67,239.65,25.6217674]
[1738242716131,0.03,239.67,239.66,21.4491674]
[1738242717637,0.03,239.67,239.66,25.6216674]
[1738242719538,0.03,239.73,239.71,0.25098]
[1738242719736,0.03,239.73,239.72,22.07469962]
[1738242720530,0.03,239.73,239.72,22.32567962]
[1738242721734,0.03,239.73,239.72,26.49717962]
[1738242722926,0.03,239.73,239.72,161.19717962]
[1738242723128,0.03,239.73,239.72,160.5716474]
[1738242723425,0.0001,239.73,239.72,160.6971374]
[1738242723655,0.0001,239.75,239.74,0.37647]
[1738242723953,0.0001,239.75,239.74,22.45101404]
[1738242724164,0.0001,239.75,239.74,50.35230404]
[1738242724455,0.063,239.77,239.76,73.59844288]
[1738242724746,0.063,239.77,239.76,290.62377103]
[1738242724929,0.063,239.77,239.76,257.8491674]
[1738242725540,0.063,239.77,239.76,262.0199674]
[1738242726353,0.063,239.77,239.76,242.0199674]
[1738242726532,0.063,239.77,239.76,233.98264853]
[1738242726929,0.063,239.77,239.76,242.0199674]
[1738242727351,0.063,239.77,239.76,242.2709474]
[1738242727547,0.063,239.77,239.76,242.0199674]
[1738242728728,0.063,239.77,239.76,107.3199674]
[1738242729340,0.063,239.77,239.76,103.1491674]
[1738242729740,0.063,239.77,239.76,95.11184853]
[1738242729941,0.063,239.77,239.76,13.41184853]
[1738242731344,0.063,239.77,239.73,8.03731887]
[1738242733058,0.063,239.77,239.73,12.20861887]
[1738242733952,0.063,239.77,239.74,13.41184853]
[1738242734155,0.063,239.77,239.75,8.03731887]
[1738242734368,0.063,239.77,239.76,13.41184853]
[1738242735237,0.063,239.77,239.76,17.58264853]
[1738242737269,0.063,239.77,239.76,18.20814339]
[1738242740679,0.063,239.77,239.76,107.94546226]
[1738242740849,0.063,239.77,239.76,107.3199674]
[1738242749972,0.063,239.77,239.76,81.7]
[1738242751577,0.063,239.77,239.73,17.58314853]
[1738242752053,0.063,239.77,239.73,25.6204674]
[1738242752454,0.063,239.77,239.76,21.4491674]
[1738242752964,0.063,239.77,239.76,13.41184853]
[1738242753675,0.063,239.77,239.76,17.58264853]
[1738242757354,0.063,239.77,239.76,100.03357172]
[1738242757649,0.063,239.77,239.76,99.40813853]
[1738242763894,0.063,239.77,239.76,234.10813853]
[1738242764191,0.063,239.77,239.76,266.25741401]
[1738242764878,0.063,239.77,239.76,234.10813853]
[1738242765887,0.063,239.77,239.76,266.25741401]
[1738242766565,0.03,239.8,239.79,41.5746574]
[1738242766767,0.03,239.8,239.79,42.19995378]
[1738242767385,0.03,239.8,239.79,123.89995378]
[1738242767592,0.03,239.8,239.79,123.2746574]
[1738242768383,0.063,239.81,239.79,123.4001474]
[1738242768569,0.063,239.81,239.8,17.58194853]
[1738242773500,0.063,239.81,239.8,99.28194853]
[1738242775388,0.063,239.81,239.8,85.8701]
[1738242776776,0.063,239.81,239.8,99.28194853]
[1738242778684,0.063,239.81,239.8,81.7]
[1738242778990,0.063,239.81,239.79,8.06731887]
[1738242778991,0.063,239.81,239.79,0.03]
[1738242783696,0.063,239.81,239.79,8.06731887]
[1738242783883,0.063,239.81,239.8,13.41184853]
[1738242784685,0.063,239.81,239.8,13.53733853]
[1738242785893,0.0001,239.81,239.8,234.23292853]
[1738242787506,0.0001,239.81,239.8,234.35841853]
[1738242789528,0.0431,239.83,239.82,33.78831853]
[1738242789801,0.063,239.9,239.89,20.12549]
[1738242790002,0.063,239.9,239.89,258.59972432]
[1738242790182,0.063,239.9,239.89,258.1001474]
[1738242790385,0.03,239.91,239.9,13.78831853]
[1738242790604,0.03,239.91,239.9,21.8256374]
[1738242791086,0.03,239.91,239.9,21.7001474]
[1738242791294,0.03,239.91,239.9,22.1996247]
[1738242791992,0.03,239.91,239.9,26.3680247]
[1738242792189,0.03,239.91,239.9,26.4935147]
[1738242792392,0.03,239.91,239.9,243.0190047]
[1738242792604,0.03,239.91,239.9,242.3940374]
[1738242795188,0.03,239.92,239.91,13.78831853]
[1738242795487,0.03,239.92,239.91,14.41324052]
[1738242796405,0.03,239.92,239.91,18.58144052]
[1738242797086,0.0001,239.92,239.91,234.98144052]
[1738242797293,0.0001,239.92,239.91,234.35651853]
[1738242797505,0.063,240.05,239.96,0.12549]
[1738242797696,0.063,240.05,240.0,21.4491674]
[1738242798826,0.063,240.05,240.0,8.03731887]
[1738242799126,0.063,240.05,239.98,12.20411887]
[1738242799416,0.063,240.05,240.0,8.03731887]
[1738242800605,0.063,240.05,239.99,33.41184853]
[1738242800886,0.063,240.05,239.99,37.57854853]
[1738242801084,0.063,240.05,240.0,8.03731887]
[1738242802311,0.063,240.05,240.0,12.20391887]
[1738242802512,0.063,240.05,240.0,4.1666]
[1738242803090,0.063,240.05,240.0,99.27844853]
[1738242804026,0.063,240.05,240.0,107.3157674]
[1738242804322,8.10031887,240.05,240.0,85.8666]
[1738242804546,0.063,240.05,240.0,4.1666]
[1738242804695,0.063,240.05,240.0,25.7412574]
[1738242804896,0.063,240.05,240.0,107.4412574]
[1738242809019,0.063,240.05,240.0,242.1412574]
[1738242811933,0.063,240.05,240.0,242.2667474]
[1738242813100,0.063,240.05,240.0,242.1412574]
[1738242816419,8.03731887,240.03,240.0,216.4]
[1738242816618,8.10031887,240.01,239.97,4.1671]
[1738242816815,0.063,240.01,239.97,4.1671]
[1738242817016,0.063,240.01,239.98,13.41184853]
[1738242820424,0.063,240.01,239.97,13.41184853]
[1738242820626,0.063,240.01,239.97,17.57894853]
[1738242820926,0.063,240.01,239.97,99.27894853]
[1738242822043,0.063,240.01,239.98,8.03731887]
[1738242824317,0.063,240.01,239.99,4.1668]
[1738242824905,0.063,240.01,239.98,4.167]
[1738242825631,0.063,240.01,239.97,95.11184853]
[1738242825834,0.063,240.01,239.97,99.27894853]
[1738242828215,0.063,240.01,239.99,13.41184853]
[1738242829232,0.063,240.01,240.0,21.4491674]
[1738242830032,0.063,240.01,240.0,25.6157674]
[1738242832732,0.063,240.01,240.0,107.3157674]
[1738242834552,0.063,240.01,240.0,99.27844853]
[1738242835139,0.063,240.01,240.0,81.7]
[1738242835637,0.063,240.01,240.0,85.8666]
[1738242838642,0.063,240.01,240.0,4.1666]
[1738242839742,0.063,240.01,239.99,8.03731887]
[1738242840939,0.063,240.01,240.0,4.1666]
[1738242843638,0.063,240.01,240.0,17.57844853]
[1738242844829,0.063,240.01,240.0,25.6157674]
[1738242846024,0.063,240.01,240.0,25.7412574]
[1738242847060,0.063,240.01,240.0,242.1412574]
[1738242850546,0.063,240.01,240.0,242.1712574]
[1738242852745,0.063,240.01,240.0,224.46731887]
[1738242852943,0.063,240.01,240.0,0.03]
[1738242853648,12.26671887,240.01,240.0,0.03]
[1738242854239,8.10031887,240.01,240.0,0.03]
[1738242854847,0.063,240.01,240.0,0.03]
[1738242855644,0.063,240.01,240.0,8.06731887]
[1738242856038,0.063,240.01,240.0,8.09319787]
[1738242857255,0.063,240.01,240.0,12.25979787]
[1738242857437,0.063,240.01,240.0,25.6716464]
[1738242862434,0.063,240.01,240.0,242.1971364]
[1738242862941,0.98422988,240.11,240.01,0.12549]
[1738242863167,5.14892988,240.11,240.02,8.03731887]
[1738242863341,8.03731887,240.1,240.02,8.03731887]
[1738242863536,8.03731887,240.1,240.02,12.20361887]
[1738242864756,4.1651,240.09,240.02,12.20361887]
[1738242866857,4.1651,240.09,240.02,8.03731887]
[1738242867059,8.03731887,240.08,240.01,81.7]
[1738242868166,12.20271887,240.08,240.01,81.7]
[1738242868368,12.20271887,240.08,240.0,12.25969787]
[1738242871676,8.03731887,240.1,240.0,12.25969787]
[1738242871880,0.46147239,240.11,240.05,20.0]
[1738242872148,0.46147239,240.21,240.1,13.41184853]
[1738242872262,1.657,240.22,240.15,8.03731887]
[1738242872581,8.12904768,240.22,240.15,8.03731887]
[1738242873258,8.12904768,240.22,240.17,8.03731887]
[1738242873660,8.12904768,240.22,240.19,8.03731887]
[1738242873852,6.47204768,240.22,240.21,8.03731887]
[1738242874796,6.47204768,240.22,240.21,8.16280887]
[1738242875288,6.47204768,240.22,240.21,8.03731887]
[1738242875586,6.47204768,240.22,240.18,134.7]
[1738242875785,6.47204768,240.22,240.16,4.1638]
[1738242876010,0.063,240.21,240.15,12.20121887]
[1738242876222,0.063,240.21,240.15,8.03731887]
[1738242876424,0.063,240.21,240.16,13.41184853]
[1738242876717,0.063,240.21,240.15,8.03731887]
[1738242877176,8.10031887,240.21,240.13,8.03731887]
[1738242877781,0.063,240.21,240.15,8.03731887]
[1738242878377,0.063,240.21,240.17,8.03731887]
[1738242878583,0.063,240.21,240.17,12.48936415]
[1738242878986,0.063,240.21,240.2,13.41184853]
[1738242879491,0.063,240.21,240.2,148.11184853]
[1738242879809,0.063,240.21,240.2,134.7]
[1738242880385,0.063,240.21,240.19,12.48936415]
[1738242880600,0.063,240.21,240.19,16.65266415]
[1738242882283,0.063,240.21,240.2,14.1616692]
[1738242882904,0.063,240.21,240.2,21.7426692]
[1738242883114,0.063,240.21,240.2,13.53733853]
[1738242883313,0.063,240.21,240.2,13.41184853]
[1738242883623,0.063,240.21,240.2,25.90121268]
[1738242887151,0.063,240.21,240.2,26.65102761]
[1738242888115,0.063,240.21,240.2,26.02670268]
[1738242890936,0.063,240.21,240.2,13.41184853]
[1738242891108,0.063,240.21,240.17,147.18936415]
[1738242891510,0.063,240.21,240.18,13.53733853]
[1738242892229,0.063,240.21,240.2,12.48936415]
[1738242893141,0.063,240.21,240.19,30.06441268]
[1738242894340,0.063,240.21,240.19,17.57504853]
[1738242894843,0.063,240.21,240.19,30.06441268]
[1738242895441,0.063,240.21,240.19,164.76441268]
[1738242895741,0.063,240.21,240.2,12.61485415]
[1738242897212,0.063,240.21,240.2,13.23914408]
[1738242898325,0.063,240.21,240.2,30.81409261]
[1738242900018,0.063,240.21,240.2,30.18980268]
[1738242900214,0.063,240.21,240.2,31.06507325]
[1738242900449,0.063,240.26,240.24,20.12549]
[1738242900745,0.063,240.26,240.25,22.02142471]
[1738242901124,0.063,240.26,240.25,21.39726162]
[1738242901545,0.063,240.26,240.23,7.98541309]
[1738242901727,0.063,240.26,240.25,7.98541309]
[1738242902050,0.063,240.26,240.25,12.77197041]
[1738242902248,0.063,240.26,240.25,27.81090894]
[1738242902410,1.5489,240.4,240.29,20.12549]
[1738242902614,1.5489,240.4,240.36,7.98541309]
[1738242902835,7.98541309,240.39,240.32,7.98541309]
[1738242903140,7.98541309,240.37,240.28,7.98541309]
[1738242903331,7.98541309,240.37,240.28,27.98541309]
[1738242903639,7.98541309,240.35,240.26,21.39726162]
[1738242903848,4.1607,240.34,240.26,21.39726162]
[1738242904336,1.5489,240.4,240.33,7.98541309]
[1738242904537,1.5489,240.4,240.36,12.46963299]
[1738242904730,1.5489,240.4,240.34,12.46963299]
[1738242904927,14.01853299,240.4,240.32,25.88148152]
[1738242905131,12.46963299,240.38,240.3,12.46963299]
[1738242905331,12.46963299,240.36,240.28,12.46963299]
[1738242906420,4.1603,240.37,240.28,12.46963299]
[1738242906421,4.1603,240.37,240.31,12.46963299]
[1738242906617,12.46963299,240.36,240.28,16.63133299]
[1738242907036,12.46963299,240.35,240.28,4.1617]
[1738242907341,12.46963299,240.33,240.25,12.46963299]
[1738242907544,12.46963299,240.33,240.25,32.46963299]
[1738242907742,12.46963299,240.29,240.21,12.46963299]
[1738242908246,12.46963299,240.31,240.23,12.46963299]
[1738242908442,12.46963299,240.29,240.21,12.46963299]
[1738242909222,12.46963299,240.27,240.21,13.41184853]
[1738242909429,12.46963299,240.27,240.2,4.1631]
[1738242910436,12.46963299,240.23,240.15,16.63363299]
[1738242912053,12.46963299,240.23,240.2,0.03]
[1738242913058,12.59512299,240.25,240.2,0.03]
[1738242914356,12.46963299,240.23,240.2,0.03]
[1738242915241,4.35059,240.27,240.2,12.49963299]
[1738242915242,12.53263299,240.27,240.2,12.49963299]
[1738242915435,0.063,240.27,240.2,12.49963299]
[1738242915641,0.063,240.27,240.22,12.46963299]
[1738242916334,0.063,240.27,240.21,13.41184853]
[1738242919859,12.46963299,240.23,240.2,0.03]
[1738242920058,12.46963299,240.21,240.2,0.03]
[1738242923568,16.63233299,240.23,240.2,0.03]
[1738242924258,12.46963299,240.25,240.2,0.03]
[1738242924467,12.53263299,240.27,240.2,12.49963299]
[1738242924650,0.063,240.27,240.2,12.49963299]
[1738242925550,0.063,240.27,240.2,16.66273299]
[1738242926964,0.063,240.27,240.22,12.46963299]
[1738242927177,0.063,240.27,240.24,12.46963299]
[1738242928573,0.063,240.27,240.22,25.88148152]
[1738242928881,12.53263299,240.27,240.2,0.03]
[1738242929383,12.53263299,240.27,240.2,12.49963299]
[1738242929967,0.063,240.27,240.22,12.46963299]
[1738242930848,0.063,240.27,240.21,13.41184853]
[1738242931047,0.063,240.27,240.24,32.46963299]
[1738242931248,0.063,240.27,240.26,12.46963299]
[1738242931662,0.063,240.36,240.3,20.0]
[1738242931841,0.063,240.36,240.33,12.46963299]
[1738242932042,0.063,240.36,240.34,13.41184853]
[1738242932269,0.063,240.36,240.35,25.88148152]
[1738242932655,0.063,240.36,240.35,26.63084011]
[1738242932853,0.063,240.36,240.35,26.75633011]
[1738242933175,0.063,240.36,240.35,30.79134011]
[1738242933353,0.063,240.36,240.35,13.41184853]
[1738242933955,0.063,240.36,240.31,12.46963299]
[1738242934162,0.063,240.36,240.34,20.0]
[1738242935379,12.53263299,240.36,240.28,12.46963299]
[1738242935673,12.53263299,240.36,240.29,13.41184853]
[1738242935856,0.063,240.36,240.31,13.41184853]
[1738242936456,0.063,240.36,240.32,12.46963299]
[1738242937564,0.063,240.36,240.34,12.46963299]
[1738242938475,0.063,240.36,240.35,13.41184853]
[1738242938656,0.063,240.46,240.42,20.0]
[1738242938856,0.063,240.46,240.45,12.46963299]
[1738242939059,0.063,240.46,240.43,12.46963299]
[1738242939373,0.063,240.46,240.45,25.88148152]
[1738242939747,0.063,240.46,240.45,12.46963299]
[1738242939977,0.063,240.46,240.4,16.62933299]
[1738242940276,0.063,240.46,240.38,6.5751]
[1738242940277,12.46963299,240.43,240.36,4.1602]
[1738242940463,12.46963299,240.43,240.35,14.10643299]
[1738242940671,12.46963299,240.43,240.36,13.41184853]
[1738242941450,12.46963299,240.41,240.36,13.41184853]
[1738242941866,11.96963299,240.41,240.36,13.41184853]
[1738242942474,16.62893299,240.43,240.36,13.41184853]
[1738242944271,12.46963299,240.41,240.36,13.41184853]
[1738242944479,12.46963299,240.41,240.37,13.41184853]
[1738242946092,12.46963299,240.41,240.33,12.46963299]
[1738242946253,12.46963299,240.39,240.31,12.46963299]
[1738242946452,16.62953299,240.39,240.32,13.41184853]
[1738242947781,12.46963299,240.37,240.29,12.46963299]
[1738242948787,4.1604,240.36,240.29,12.46963299]
[1738242949176,12.46963299,240.37,240.29,16.63123299]
[1738242949475,16.62993299,240.37,240.29,12.46963299]
[1738242951173,12.46963299,240.37,240.3,13.41184853]
[1738242951373,0.063,240.39,240.31,12.46963299]
[1738242951374,16.69253299,240.39,240.31,12.46963299]
[1738242951779,16.69253299,240.39,240.3,13.41184853]
[1738242951780,12.46963299,240.37,240.3,13.41184853]
[1738242952267,16.62993299,240.37,240.29,12.46963299]
[1738242952474,12.46963299,240.35,240.27,12.49963299]
[1738242952667,12.46963299,240.35,240.27,30.07338152]
[1738242952868,12.46963299,240.35,240.28,13.41184853]
[1738242953258,4.1603,240.37,240.29,12.46963299]
[1738242953483,12.46963299,240.38,240.32,20.0]
[1738242953658,0.063,240.39,240.38,20.0]
[1738242953858,0.063,240.39,240.38,32.46963299]
[1738242954059,0.063,240.39,240.38,45.88148152]
[1738242954565,0.063,240.39,240.38,50.04148152]
[1738242955589,0.063,240.39,240.38,50.16697152]
[1738242955757,0.063,240.39,240.38,50.79072316]
[1738242957209,12.46963299,240.52,240.43,13.41184853]
[1738242957368,12.46963299,240.52,240.43,25.88148152]
[1738242958180,12.46963299,240.5,240.43,13.41184853]
[1738242958563,12.46963299,240.5,240.43,25.88148152]
[1738242958765,12.46963299,240.5,240.43,12.46963299]
[1738242958967,12.46963299,240.47,240.39,12.46963299]
[1738242959368,12.46963299,240.47,240.42,20.0]
[1738242960191,12.46963299,240.47,240.43,20.0]
[1738242960362,12.46963299,240.49,240.42,13.41184853]
[1738242961386,12.46963299,240.49,240.43,4.1592]
[1738242962165,7.97308,240.54,240.44,13.41184853]
[1738242962166,12.46963299,240.51,240.44,13.41184853]
[1738242963800,12.46963299,240.51,240.45,4.1588]
[1738242963998,12.46963299,240.49,240.44,20.0]
[1738242964170,12.46963299,240.45,240.37,12.46963299]
[1738242964364,12.46963299,240.41,240.34,4.1607]
[1738242965389,0.063,240.46,240.39,12.46963299]
[1738242966998,0.063,240.46,240.42,13.41184853]
[1738242968998,0.063,240.46,240.43,4.1592]
[1738242969182,0.063,240.46,240.44,13.41184853]
[1738242971100,0.063,240.46,240.45,16.62843299]
[1738242971778,0.063,240.46,240.45,30.04028152]
[1738242972490,0.063,240.46,240.45,30.16577152]
[1738242973297,0.063,240.46,240.45,30.41675152]
[1738242973693,0.063,240.46,240.45,31.04025615]
[1738242974479,0.063,240.46,240.45,30.41675152]
[1738242975702,0.063,240.46,240.45,30.04028152]
[1738242976489,0.063,240.46,240.45,25.88148152]
[1738242976693,0.063,240.46,240.45,13.41184853]
[1738242977586,0.063,240.46,240.45,17.57064853]
[1738242978679,0.063,240.46,240.45,17.69613853]
[1738242979116,0.063,240.46,240.45,17.57064853]
[1738242979887,0.063,240.46,240.44,16.62853299]
[1738242980089,0.063,240.46,240.45,13.41184853]
[1738242980486,0.063,240.46,240.45,13.78831853]
[1738242980692,12.46963299,240.57,240.49,13.41184853]
[1738242981001,12.46963299,240.55,240.49,13.41184853]
[1738242981995,12.46963299,240.55,240.47,4.1583]
[1738242981996,12.46963299,240.52,240.47,4.1583]
[1738242983110,12.46963299,240.52,240.45,12.46963299]
[1738242983111,12.46963299,240.54,240.46,4.1586]
[1738242984744,4.1572,240.55,240.41,25.88148152]
[1738242984745,12.46963299,240.48,240.41,25.88148152]
[1738242984930,12.46963299,240.48,240.42,4.1593]
[1738242985221,12.46963299,240.5,240.43,25.88148152]
[1738242986221,0.03,240.48,240.43,25.88148152]
[1738242986401,0.03,240.48,240.45,13.41184853]
[1738242987528,0.03,240.48,240.45,25.88148152]
[1738242988428,0.03,240.48,240.47,26.00697152]
[1738242988640,0.03,240.48,240.47,26.25795152]
[1738242990633,0.03,240.48,240.47,30.03998152]
[1738242991425,0.03,240.48,240.47,30.16547152]
[1738242992312,1.5776,240.6,240.51,13.53733853]
[1738242992513,16.62483299,240.66,240.58,12.46963299]
[1738242992913,12.46963299,240.66,240.58,12.46963299]
[1738242993313,12.46963299,240.64,240.58,12.46963299]
[1738242993952,12.46963299,240.64,240.57,17.56854853]
[1738242994755,4.1553,240.66,240.55,4.1571]
[1738242994756,12.46963299,240.62,240.55,4.1571]
[1738242994912,12.46963299,240.57,240.5,16.62763299]
[1738242995731,12.46963299,240.57,240.51,13.41184853]
[1738242995939,12.46963299,240.59,240.51,25.88148152]
[1738242996143,12.46963299,240.57,240.51,17.56964853]
[1738242996344,12.46963299,240.57,240.51,13.41184853]
[1738242997033,12.46963299,240.57,240.51,17.56954853]
[1738242997346,12.46963299,240.56,240.49,12.3125]
[1738242997737,12.46963299,240.56,240.5,25.88148152]
[1738242998139,12.46963299,240.62,240.54,12.46963299]
[1738242998333,12.46963299,240.62,240.5,17.56964853]
[1738242998334,12.46963299,240.64,240.56,12.46963299]
[1738242998735,12.46963299,240.64,240.57,13.41184853]
[1738242999127,12.46963299,240.64,240.56,12.46963299]
[1738242999448,0.03,240.59,240.56,12.46963299]
[1738243000133,0.03,240.59,240.56,16.62643299]
[1738243000525,0.03,240.59,240.54,12.46963299]
[1738243000843,0.03,240.59,240.52,16.62723299]
[1738243001246,0.03,240.59,240.53,13.41184853]
[1738243001630,0.03,240.59,240.52,36.62723299]
[1738243001951,0.03,240.59,240.54,12.46963299]
[1738243003941,0.03,240.59,240.54,16.62683299]
[1738243004563,0.03,240.59,240.56,12.46963299]
[1738243004732,0.03,240.59,240.54,17.56904853]
[1738243004733,0.03,240.59,240.58,12.46963299]
[1738243007154,0.03,240.59,240.57,13.41184853]
[1738243007932,0.03,240.59,240.58,12.46963299]
[1738243008133,0.03,240.59,240.58,25.88148152]
[1738243009866,0.03,240.59,240.58,30.03808152]
[1738243013738,0.03,240.59,240.58,25.88148152]
[1738243014561,0.03,240.59,240.58,30.03808152]
[1738243021381,0.03,240.59,240.58,12.46963299]
[1738243021554,0.03,240.59,240.58,16.62623299]
[1738243022378,0.03,240.59,240.58,12.46963299]
[1738243023265,0.03,240.59,240.58,25.88148152]
[1738243023848,0.03,240.59,240.57,0.063]
[1738243024352,0.03,240.59,240.58,12.46963299]
[1738243026571,0.03,240.59,240.57,0.063]
[1738243026775,12.49963299,240.59,240.57,0.063]
[1738243027164,0.03,240.59,240.57,0.063]
[1738243028569,12.49963299,240.59,240.57,0.063]
[1738243028773,0.58696239,240.58,240.57,0.063]
[1738243030279,4.74356239,240.58,240.57,0.063]
[1738243030648,4.1566,240.58,240.57,0.063]
[1738243030874,12.49963299,240.59,240.57,0.063]
[1738243031052,0.03,240.59,240.57,0.063]
[1738243032369,0.03,240.59,240.58,16.62623299]
[1738243032685,0.03,240.59,240.58,30.03808152]
[1738243052794,0.03,240.59,240.58,25.53353669]
[1738243052965,0.03,240.59,240.58,21.37693669]
[1738243055085,0.03,240.59,240.57,0.063]
[1738243055391,7.96508816,240.58,240.57,0.063]
[1738243055886,8.42656055,240.58,240.57,0.063]
[1738243056195,7.96508816,240.58,240.57,0.063]
[1738243057801,0.03,240.59,240.57,0.063]
[1738243060287,12.45340427,240.58,240.57,0.063]
[1738243060676,12.91487666,240.58,240.57,0.063]